bitfinex/quotes_ETHUSD_20210401
["timestamp","ask_amount","ask_price","bid_price","bid_amount"]
[1617251509812,7.78709,1927.0,1926.6,7.7637]
[1617251510834,7.78709,1927.0,1926.6,7.4837]
[1617251511037,12.79709,1927.0,1926.6,7.7637]
[1617251511836,7.78709,1927.0,1926.6,7.7637]
[1617251512035,7.78709,1927.0,1926.7,2.2327488]
[1617251513264,7.78709,1927.0,1926.6,8.1437]
[1617251513462,7.78709,1927.0,1926.7,2.2327488]
[1617251514465,7.78709,1927.0,1926.6,7.7137]
[1617251514664,8.16709,1927.0,1926.6,7.7137]
[1617251515683,7.78709,1927.0,1926.6,7.7137]
[1617251516493,7.78709,1927.0,1926.6,7.4337]
[1617251516693,7.78709,1927.0,1926.5,0.28]
[1617251516893,7.78709,1927.0,1926.6,2.2327488]
[1617251518513,7.78709,1927.0,1926.5,0.69]
[1617251518917,7.78709,1927.0,1926.5,1.89]
[1617251519114,7.78709,1927.0,1926.6,2.2327488]
[1617251519315,7.78709,1927.0,1926.5,0.69]
[1617251519516,7.78709,1927.0,1926.5,0.28]
[1617251520516,7.78709,1927.0,1926.6,2.2327488]
[1617251521941,7.53709,1927.0,1926.6,2.2327488]
[1617251522138,7.53709,1927.0,1926.7,0.38]
[1617251522340,7.53709,1927.0,1926.7,0.66]
[1617251522941,7.53709,1927.0,1926.7,0.28]
[1617251524169,7.53709,1927.0,1926.5,7.5874]
[1617251524365,7.53709,1927.0,1926.5,0.28]
[1617251525569,7.92709,1927.0,1926.5,0.28]
[1617251526390,0.39,1926.9,1926.5,0.28]
[1617251526589,16.34579347,1927.1,1926.1,0.15212156]
[1617251526590,7.78881,1926.7,1926.1,0.15212156]
[1617251526793,0.39,1926.6,1926.0,0.09406894]
[1617251526990,5.15,1926.5,1925.9,14.7219]
[1617251527189,0.14,1926.5,1925.9,0.28]
[1617251527391,0.14,1926.5,1925.9,0.66]
[1617251527590,0.14,1926.5,1926.0,2.2327488]
[1617251527790,0.14,1926.5,1926.1,0.329]
[1617251527791,7.78907,1926.4,1926.1,0.329]
[1617251528789,7.78907,1926.4,1926.0,0.41]
[1617251529017,7.78907,1926.4,1926.1,2.2327488]
[1617251530017,7.78907,1926.4,1926.1,2.5127488]
[1617251530216,7.78907,1926.4,1926.1,0.28]
[1617251531317,7.78907,1926.4,1926.0,0.28]
[1617251531964,0.39,1926.3,1925.7,1.19351854]
[1617251532159,0.39,1926.3,1925.6,0.49406894]
[1617251532160,0.474,1926.3,1925.6,0.68]
[1617251532359,0.474,1926.3,1925.6,0.28]
[1617251532560,5.39,1926.2,1925.4,0.38]
[1617251532760,0.14,1926.1,1925.4,0.47406894]
[1617251532959,7.79176,1925.8,1925.4,0.38]
[1617251533160,16.41836,1925.8,1925.4,0.38]
[1617251533559,16.41836,1925.8,1925.4,2.6127488]
[1617251533759,17.47122661,1925.8,1925.3,0.364]
[1617251533960,17.47122661,1925.8,1925.2,0.28]
[1617251534160,17.47122661,1925.8,1925.2,0.69]
[1617251534368,16.41836,1925.8,1925.2,0.69]
[1617251534766,16.41836,1925.8,1925.4,0.4]
[1617251534965,16.41836,1925.8,1925.4,0.68]
[1617251536995,16.41836,1925.8,1925.5,2.2327488]
[1617251537198,8.6266,1925.8,1925.6,0.4]
[1617251537396,5.01,1926.2,1925.6,0.4]
[1617251537595,5.01,1926.2,1925.7,0.768]
[1617251537995,0.14,1926.3,1925.7,0.86206894]
[1617251538197,7.79014,1926.1,1925.7,3.09481774]
[1617251538397,7.79014,1926.1,1925.8,0.4]
[1617251538796,7.79014,1926.1,1925.7,0.378]
[1617251538997,7.79014,1926.1,1925.3,0.09406894]
[1617251539196,7.79014,1926.1,1925.5,0.69]
[1617251539396,7.79014,1926.1,1925.6,2.2327488]
[1617251539625,12.80014,1926.1,1925.6,2.2327488]
[1617251539829,12.80014,1926.1,1925.5,0.69]
[1617251540026,5.01,1925.9,1925.5,0.69]
[1617251540427,5.094,1926.0,1925.3,0.09406894]
[1617251540625,5.094,1926.0,1925.3,0.77106894]
[1617251540827,7.79194,1925.7,1925.3,0.77106894]
[1617251541025,7.79194,1925.7,1925.3,0.677]
[1617251541627,7.79194,1925.7,1925.3,0.39]
[1617251541830,7.79194,1925.7,1925.1,1.0]
[1617251542030,7.79194,1925.7,1925.2,2.9617488]
[1617251543046,7.79194,1925.7,1925.3,0.41]
[1617251543849,7.79194,1925.7,1925.3,0.69]
[1617251544450,7.79194,1925.7,1925.5,0.39]
[1617251545074,7.79194,1925.7,1925.3,0.28]
[1617251545271,7.79194,1925.7,1925.3,0.4]
[1617251546498,7.79194,1925.7,1925.2,2.5127488]
[1617251546701,7.79194,1925.7,1925.3,0.41]
[1617251547298,7.79194,1925.7,1925.3,0.69]
[1617251548119,7.79194,1925.7,1925.1,1.0]
[1617251548320,7.79194,1925.7,1925.1,1.67]
[1617251548923,7.79194,1925.7,1925.3,0.38]
[1617251551724,7.79194,1925.7,1925.3,0.688]
[1617251552124,7.79194,1925.7,1925.4,2.2327488]
[1617251552324,7.79194,1925.7,1925.4,0.4]
[1617251552524,7.79194,1925.7,1925.4,2.6327488]
[1617251553343,7.79194,1925.7,1925.5,0.39]
[1617251553344,6.79194,1925.7,1925.5,0.39]
[1617251553543,6.79194,1925.7,1925.4,2.2327488]
[1617251553743,6.79194,1925.7,1925.4,0.4]
[1617251553945,6.79194,1925.7,1925.2,2.51158796]
[1617251554143,6.79194,1925.7,1925.3,0.4]
[1617251554947,6.79194,1925.7,1925.4,0.41]
[1617251555574,6.79194,1925.7,1925.2,0.28]
[1617251555771,6.79194,1925.7,1925.3,0.41]
[1617251556371,6.79194,1925.7,1925.3,0.69]
[1617251557373,6.79194,1925.7,1925.3,0.41]
[1617251557774,5.01,1925.5,1925.3,0.69]
[1617251557997,6.79194,1925.7,1925.4,0.4]
[1617251558397,5.79194,1925.7,1925.4,0.4]
[1617251558798,5.01,1925.5,1925.1,1.0]
[1617251558998,5.01,1925.5,1925.1,1.39]
[1617251559199,5.01,1925.6,1925.1,3.62043292]
[1617251559398,5.01,1925.6,1925.2,0.38]
[1617251559799,7.79284,1925.4,1925.1,1.0]
[1617251560000,7.79284,1925.4,1925.1,1.4]
[1617251560413,5.094,1925.6,1925.1,1.4]
[1617251560617,5.094,1925.6,1925.2,2.62043292]
[1617251560822,7.79208,1925.6,1925.4,0.67]
[1617251561020,7.79208,1925.6,1925.5,0.4]
[1617251561619,7.79208,1925.6,1925.4,0.28]
[1617251562023,7.79208,1925.6,1925.5,0.39]
[1617251562220,0.27092276,1925.8,1925.5,0.39]
[1617251562420,0.27092276,1925.8,1925.5,8.1588]
[1617251562620,0.27092276,1925.8,1925.7,0.39]
[1617251562820,0.27092276,1925.8,1925.7,2.62043292]
[1617251563276,7.79035,1926.0,1925.7,2.62043292]
[1617251563480,6.79035,1926.0,1925.9,0.39]
[1617251563677,6.79035,1926.0,1925.9,8.4179]
[1617251568396,5.79035,1926.0,1925.9,8.4179]
[1617251568797,5.79035,1926.0,1925.8,0.39]
[1617251568996,5.79035,1926.0,1925.7,0.28]
[1617251569196,5.79035,1926.0,1925.6,2.445]
[1617251569396,5.79035,1926.0,1925.6,3.63144006]
[1617251569597,5.79035,1926.0,1925.6,2.61814006]
[1617251570399,5.79035,1926.0,1925.6,0.39]
[1617251570599,10.80035,1926.0,1925.6,0.39]
[1617251571225,5.01,1925.8,1925.6,0.39]
[1617251571422,7.79212,1925.7,1925.5,7.7688]
[1617251571622,7.79212,1925.7,1925.5,0.38]
[1617251572023,7.79212,1925.7,1925.4,0.28]
[1617251572223,7.79212,1925.7,1925.4,0.050765]
[1617251572424,7.79212,1925.7,1925.3,0.4]
[1617251572625,0.084,1925.9,1925.3,0.4]
[1617251572825,0.084,1925.9,1925.4,0.743]
[1617251573224,0.4,1926.0,1925.4,0.743]
[1617251573424,7.79124,1925.8,1925.7,0.38]
[1617251573852,5.01,1926.0,1925.7,0.38]
[1617251574049,10.46954273,1926.1,1925.9,0.4]
[1617251574448,10.46954273,1926.1,1925.6,0.28]
[1617251574449,7.79076,1926.0,1925.7,0.4]
[1617251575450,0.54205565,1925.9,1925.7,0.4]
[1617251575651,8.33304565,1925.9,1925.6,0.28]
[1617251575852,8.33304565,1925.9,1925.6,0.38]
[1617251576677,7.79099,1925.9,1925.6,0.38]
[1617251577478,7.79099,1925.9,1925.7,0.4]
[1617251577878,7.79099,1925.9,1925.5,0.28]
[1617251578085,7.79099,1925.9,1925.6,0.41]
[1617251578479,6.79099,1925.9,1925.6,0.41]
[1617251578898,6.79099,1925.9,1925.4,2.206972]
[1617251579101,0.2709711,1925.8,1925.5,0.39]
[1617251579298,7.79173,1925.7,1925.5,0.39]
[1617251579498,7.79173,1925.7,1925.3,9.8652]
[1617251579699,7.79173,1925.7,1925.4,2.59593972]
[1617251579899,7.79173,1925.7,1925.4,0.39]
[1617251580102,7.79173,1925.7,1925.1,3.20593972]
[1617251580300,7.79173,1925.7,1925.3,0.4]
[1617251580500,7.79173,1925.7,1925.3,2.60593972]
[1617251580700,12.80173,1925.7,1925.3,2.60593972]
[1617251581523,7.79173,1925.7,1925.3,2.60593972]
[1617251582526,4.33489884,1925.8,1925.5,0.41]
[1617251582725,0.2709711,1925.8,1925.6,2.61593972]
[1617251583526,7.7909,1925.9,1925.7,0.4]
[1617251583724,10.3872,1926.2,1925.8,0.38]
[1617251584757,7.79077,1926.0,1925.8,0.66]
[1617251584956,10.3872,1926.2,1925.8,0.66]
[1617251585559,0.10213079,1926.3,1926.0,0.41]
[1617251585560,0.01813079,1926.3,1926.0,0.41]
[1617251585759,5.01,1926.3,1926.0,7.1386]
[1617251585958,5.02813017,1926.4,1926.0,7.1386]
[1617251585959,0.01813017,1926.4,1926.1,2.19392902]
[1617251586559,0.01812889,1926.5,1926.2,0.364]
[1617251586776,0.01812889,1926.5,1926.1,0.28]
[1617251586980,0.01812889,1926.5,1926.2,2.19392902]
[1617251587176,7.78915,1926.4,1926.2,2.19392902]
[1617251587378,7.78915,1926.4,1926.1,0.28]
[1617251587578,7.80728906,1926.4,1926.1,0.28]
[1617251588378,7.80728906,1926.4,1926.0,6.7286]
[1617251588379,6.80728906,1926.4,1926.0,6.7286]
[1617251589400,6.80728906,1926.4,1926.1,0.41]
[1617251589603,11.81728906,1926.4,1926.0,6.7286]
[1617251589800,6.80728906,1926.4,1926.0,6.7286]
[1617251590430,6.80728906,1926.4,1926.0,7.1186]
[1617251591829,6.80728906,1926.4,1925.8,0.4]
[1617251592044,11.81728906,1926.4,1925.8,0.68]
[1617251592446,6.80728906,1926.4,1925.8,0.68]
[1617251592647,0.01813998,1926.3,1925.8,0.28]
[1617251593048,0.01813998,1926.3,1925.8,0.68]
[1617251593445,10.38712,1926.3,1926.1,0.4]
[1617251593645,0.54194988,1926.4,1926.1,0.4]
[1617251593846,5.01,1926.4,1926.1,0.4]
[1617251594446,11.16791498,1926.6,1926.1,0.4]
[1617251594851,5.01,1926.4,1926.1,0.4]
[1617251595051,5.01,1926.4,1926.0,0.28]
[1617251595249,15.3967,1926.4,1926.0,0.68]
[1617251595851,15.3967,1926.4,1926.0,0.4]
[1617251596652,5.01,1926.3,1926.0,0.4]
[1617251596852,5.01,1926.2,1925.9,0.28]
[1617251597274,12.79984,1926.2,1925.9,0.28]
[1617251597476,12.79984,1926.2,1925.8,0.69]
[1617251597874,12.79984,1926.2,1925.8,0.41]
[1617251598074,12.79984,1926.2,1925.5,2.38289239]
[1617251598075,12.79984,1926.2,1925.5,0.48197673]
[1617251598277,12.79984,1926.2,1925.5,0.38790779]
[1617251598474,11.79984,1926.2,1925.5,0.67]
[1617251598874,11.79984,1926.2,1925.7,0.39]
[1617251599074,11.79984,1926.2,1925.5,0.66]
[1617251599275,19.83922067,1926.2,1925.5,0.66]
[1617251599900,20.3812968,1926.2,1925.5,0.66]
[1617251600107,20.3812968,1926.2,1925.6,2.56001334]
[1617251600302,5.01,1926.1,1925.7,0.39]
[1617251600503,5.01,1926.0,1925.7,0.39]
[1617251600703,7.79121,1925.9,1925.7,0.39]
[1617251600903,7.79121,1925.9,1925.4,2.51601334]
[1617251601102,7.79121,1925.9,1925.5,0.41]
[1617251601303,7.79121,1925.9,1925.6,2.18001334]
[1617251601703,7.79121,1925.9,1925.5,0.41]
[1617251602104,7.79121,1925.9,1925.6,2.18001334]
[1617251602528,5.094,1926.0,1925.8,0.38]
[1617251602529,5.01,1926.0,1925.8,0.38]
[1617251602730,0.27097468,1926.2,1925.8,0.38]
[1617251603128,5.01,1926.2,1925.8,0.38]
[1617251603729,7.79007,1926.2,1925.9,0.39]
[1617251604527,6.79007,1926.2,1925.9,0.39]
[1617251604927,5.01,1926.0,1925.7,7.8742]
[1617251605161,5.01,1926.0,1925.7,8.2642]
[1617251605364,1.24158652,1926.3,1925.7,8.2642]
[1617251605365,5.01,1926.1,1925.7,8.2642]
[1617251605761,5.01,1926.2,1925.7,8.2642]
[1617251606163,7.791,1926.0,1925.8,0.41]
[1617251606363,7.791,1926.0,1925.7,7.8742]
[1617251606563,7.791,1926.0,1925.8,0.38]
[1617251607361,7.752,1926.0,1925.8,0.38]
[1617251607562,10.38799,1926.1,1925.9,0.38]
[1617251607796,1.24158652,1926.3,1925.9,0.38]
[1617251607999,0.54206527,1926.3,1925.9,0.38]
[1617251608198,5.01,1926.2,1925.9,0.38]
[1617251608398,7.79032,1926.1,1925.8,0.28]
[1617251608598,7.79032,1926.1,1925.8,0.69]
[1617251608599,8.49173674,1926.1,1925.8,0.69]
[1617251608799,8.49173674,1926.1,1926.0,0.39]
[1617251608800,0.70141674,1926.1,1926.0,0.39]
[1617251609399,5.4053039,1926.3,1926.0,0.39]
[1617251609601,7.78995,1926.2,1926.0,0.39]
[1617251609799,7.78995,1926.2,1926.1,0.4]
[1617251610401,6.78995,1926.2,1926.1,6.3129]
[1617251611603,6.78995,1926.2,1926.1,5.9129]
[1617251612607,7.94113961,1926.4,1926.1,5.9129]
[1617251612807,7.94113961,1926.4,1926.2,0.39]
[1617251613834,7.94113961,1926.4,1926.1,5.9129]
[1617251614236,7.94113961,1926.4,1926.1,6.2929]
[1617251614436,6.94113961,1926.4,1926.1,5.9129]
[1617251614636,11.95113961,1926.4,1926.1,5.9129]
[1617251615436,10.99913961,1926.4,1926.0,0.67]
[1617251615859,5.01,1926.2,1926.0,0.39]
[1617251616055,5.01,1926.2,1925.7,7.1083]
[1617251616256,5.01,1926.3,1925.9,0.4]
[1617251616457,7.79077,1926.1,1925.9,0.4]
[1617251618059,7.79077,1926.1,1925.7,0.308]
[1617251618282,7.79077,1926.1,1925.8,0.4]
[1617251619483,7.73477,1926.1,1925.8,0.4]
[1617251620285,7.73477,1926.1,1925.9,0.39]
[1617251621109,7.73477,1926.1,1925.7,0.308]
[1617251621304,7.73477,1926.1,1925.7,0.708]
[1617251621505,7.73477,1926.1,1925.7,3.60120565]
[1617251621506,12.74477,1926.1,1925.7,3.60120565]
[1617251621706,7.73477,1926.1,1925.7,0.68]
[1617251621905,7.73477,1926.1,1925.7,0.28]
[1617251622105,12.74477,1926.1,1925.5,0.60692188]
[1617251622305,20.87393508,1926.1,1925.5,0.88692188]
[1617251622506,19.97393508,1926.1,1925.7,0.39]
[1617251623308,7.79161,1925.8,1925.7,0.39]
[1617251623731,7.79161,1925.8,1925.3,2.16200454]
[1617251624129,7.79161,1925.8,1925.3,2.44200454]
[1617251624933,7.79161,1925.8,1925.6,0.38]
[1617251625130,16.57439848,1926.2,1925.7,0.38]
[1617251625131,5.01,1926.1,1925.7,0.38]
[1617251625330,5.01,1926.0,1925.7,0.38]
[1617251625530,5.01,1926.1,1925.7,0.38]
[1617251625730,5.01,1926.0,1925.5,0.69]
[1617251626152,5.01,1926.0,1925.7,0.38]
[1617251626355,5.01,1926.0,1925.5,0.69]
[1617251626553,12.80096,1926.0,1925.5,0.69]
[1617251627253,12.80096,1926.0,1925.7,0.41]
[1617251627454,13.34297565,1926.0,1925.5,0.69]
[1617251628255,13.34297565,1926.0,1925.5,0.41]
[1617251630078,13.34297565,1926.0,1925.5,0.69]
[1617251630480,13.34297565,1926.0,1925.1,2.28751589]
[1617251630679,0.084,1925.9,1925.4,0.39]
[1617251630880,0.084,1925.9,1925.3,0.364]
[1617251631278,0.084,1925.9,1925.3,0.744]
[1617251632105,0.084,1925.9,1925.4,0.4]
[1617251632106,7.79294,1925.6,1925.4,0.4]
[1617251632306,5.01,1925.9,1925.5,2.84019902]
[1617251632507,5.01,1925.9,1925.7,0.41]
[1617251632707,5.55201565,1926.0,1925.7,0.41]
[1617251633106,0.54201565,1926.0,1925.7,0.41]
[1617251633306,7.79091,1925.9,1925.7,0.41]
[1617251633507,7.79091,1925.9,1925.5,0.28]
[1617251633708,7.79091,1925.9,1925.6,0.38]
[1617251633907,7.79091,1925.9,1925.5,0.28]
[1617251634134,7.79091,1925.9,1925.5,0.66]
[1617251635131,7.79091,1925.9,1925.6,2.16019902]
[1617251635332,7.79091,1925.9,1925.6,2.54019902]
[1617251635562,7.79091,1925.9,1925.6,0.38]
[1617251636779,7.79091,1925.9,1925.5,0.28]
[1617251637178,7.79091,1925.9,1925.5,2.44019902]
[1617251637377,7.79091,1925.9,1925.5,2.84019902]
[1617251637577,7.79091,1925.9,1925.6,0.39]
[1617251638578,7.79091,1925.9,1925.3,2.16019902]
[1617251638778,7.79091,1925.9,1925.2,0.4]
[1617251638977,5.01,1925.7,1925.2,0.4]
[1617251639178,5.094,1925.8,1925.4,0.4]
[1617251639386,5.094,1925.8,1925.3,0.09406894]
[1617251639583,0.5420646,1925.7,1925.3,0.38]
[1617251639983,7.79243,1925.5,1925.3,0.38]
[1617251640383,7.79243,1925.5,1925.3,2.54019902]
[1617251641785,7.79243,1925.5,1925.4,0.41]
[1617251642611,7.79194,1925.7,1925.4,0.41]
[1617251643211,12.80194,1925.7,1925.2,0.28]
[1617251643412,12.80194,1925.7,1925.3,2.54019902]
[1617251643810,7.79194,1925.7,1925.3,2.54019902]
[1617251644211,12.80194,1925.7,1925.3,2.54019902]
[1617251644412,12.80194,1925.7,1925.1,1.0]
[1617251644844,5.01,1925.5,1925.1,1.0]
[1617251645243,5.01,1925.6,1925.1,1.0]
[1617251645444,5.01,1925.6,1925.1,1.39]
[1617251646245,7.79358,1925.3,1925.1,1.0]
[1617251647046,16.69338,1925.3,1925.1,1.0]
[1617251647463,18.7723546,1925.3,1925.1,1.0]
[1617251647662,17.6901887,1925.3,1925.1,1.0]
[1617251647863,11.9283746,1925.3,1925.1,1.0]
[1617251648264,13.01291656,1925.3,1925.1,1.0]
[1617251648465,13.55517609,1925.3,1925.1,1.0]
[1617251648867,14.4464,1925.2,1925.1,1.0]
[1617251651506,15.11753951,1925.2,1925.1,1.0]
[1617251651703,22.8464,1925.2,1925.1,1.0]
[1617251651904,22.8464,1925.2,1924.6,1.0]
[1617251651905,28.6,1925.1,1924.6,1.0]
[1617251652104,2.15940004,1925.0,1924.6,1.0]
[1617251652541,10.9890168,1924.9,1924.6,1.0]
[1617251652737,26.9,1924.7,1924.6,1.0]
[1617251653141,34.9,1924.7,1924.6,1.0]
[1617251653337,8.7775,1924.7,1924.6,1.0]
[1617251653539,0.7775,1924.7,1924.6,1.0]
[1617251654539,7.79609,1924.8,1924.6,1.0]
[1617251655342,5.01,1924.7,1924.6,1.0]
[1617251658368,7.79609,1924.8,1924.6,1.0]
[1617251658569,8.8809846,1924.8,1924.6,1.0]
[1617251659969,7.79609,1924.8,1924.6,1.0]
[1617251662199,5.01,1924.7,1924.6,1.0]
[1617251662397,13.01,1924.7,1924.6,1.0]
[1617251662597,13.76,1924.7,1924.6,1.0]
[1617251664230,13.76,1924.7,1924.6,2.02742893]
[1617251664430,13.76,1924.7,1924.6,1.0]
[1617251664831,17.82801039,1924.7,1924.6,1.0]
[1617251665433,27.02801039,1924.7,1924.6,1.0]
[1617251665641,34.47801039,1924.7,1924.6,1.0]
[1617251665838,27.02801039,1924.7,1924.6,1.0]
[1617251666447,27.57055253,1924.7,1924.6,1.0]
[1617251666641,34.37055253,1924.7,1924.6,1.0]
[1617251667443,23.38857742,1924.7,1924.6,1.0]
[1617251667647,23.65972764,1924.7,1924.6,1.0]
[1617251667845,16.85972764,1924.7,1924.6,1.0]
[1617251668687,33.30972764,1924.7,1924.6,1.0]
[1617251668887,24.85972764,1924.7,1924.6,1.0]
[1617251669085,16.10972764,1924.7,1924.6,1.0]
[1617251669688,23.75972764,1924.7,1924.6,1.0]
[1617251670089,14.55972764,1924.7,1924.6,1.0]
[1617251670289,6.90972764,1924.7,1924.6,1.0]
[1617251670689,12.01632764,1924.7,1924.6,1.0]
[1617251671091,5.96632764,1924.7,1924.6,1.0]
[1617251674519,12.26632764,1924.7,1924.6,1.0]
[1617251674919,20.06507764,1924.7,1924.6,1.0]
[1617251675121,13.76507764,1924.7,1924.6,1.0]
[1617251675924,14.84998324,1924.7,1924.6,1.0]
[1617251676542,13.84998324,1924.7,1924.6,1.4]
[1617251677342,12.76535835,1924.7,1924.6,1.4]
[1617251677542,16.69045275,1924.7,1924.6,1.4]
[1617251678142,17.77534377,1924.7,1924.6,1.4]
[1617251678968,13.62244236,1924.7,1924.6,1.4]
[1617251679372,0.81369236,1924.7,1924.6,1.4]
[1617251679570,0.81369236,1924.7,1924.6,22.87860502]
[1617251679768,0.27115022,1924.7,1924.6,27.09860502]
[1617251679970,0.1,1924.8,1924.6,27.27677898]
[1617251680168,0.1,1924.8,1924.7,7.29]
[1617251680373,0.1,1924.8,1924.7,10.29]
[1617251680606,0.1,1924.8,1924.7,14.6144]
[1617251680806,0.1,1924.8,1924.7,15.8144]
[1617251681410,0.1,1924.8,1924.7,40.85765]
[1617251681614,4.0,1925.0,1924.9,22.05]
[1617251681615,3.1,1925.0,1924.9,22.05]
[1617251681811,3.1,1925.0,1924.9,28.79]
[1617251682011,3.1,1925.0,1924.9,29.5853]
[1617251683207,3.1,1925.0,1924.9,8.7353]
[1617251683406,3.1,1925.0,1924.9,17.5953]
[1617251684443,3.1,1925.0,1924.9,33.8453]
[1617251685243,3.1,1925.0,1924.9,25.8453]
[1617251685244,2.8,1925.0,1924.9,25.8453]
[1617251685444,2.8,1925.0,1924.9,31.8653]
[1617251685845,2.8,1925.0,1924.9,39.8653]
[1617251686245,2.8,1925.0,1924.9,31.8653]
[1617251686651,1.8,1925.0,1924.9,39.8653]
[1617251687048,0.644,1925.0,1924.9,31.8653]
[1617251687448,7.79277,1925.6,1925.0,13.65]
[1617251687649,7.79277,1925.6,1925.5,0.4]
[1617251688049,7.79277,1925.6,1925.1,6.40714744]
[1617251688249,7.79277,1925.6,1925.3,0.4]
[1617251689049,7.79277,1925.6,1925.1,5.1130785]
[1617251689272,7.79277,1925.6,1925.2,0.41]
[1617251689668,5.01,1925.4,1925.2,0.41]
[1617251689869,5.01,1925.4,1925.2,0.52683679]
[1617251690068,5.55217104,1925.5,1925.2,0.52683679]
[1617251690468,0.54217104,1925.5,1925.2,0.52683679]
[1617251690870,5.55217104,1925.5,1925.2,3.52683679]
[1617251691068,7.79365,1925.4,1925.2,3.11683679]
[1617251691669,6.79365,1925.4,1925.2,3.11683679]
[1617251691902,5.01,1925.3,1925.2,3.11683679]
[1617251692300,13.71,1925.3,1925.2,0.11683679]
[1617251692899,13.71,1925.3,1924.8,0.39]
[1617251693106,5.01,1925.2,1924.8,0.39]
[1617251693301,5.01,1925.1,1924.8,0.39]
[1617251693901,7.79559,1925.1,1925.0,0.4]
[1617251694524,10.39412,1925.2,1925.0,0.4]
[1617251694720,15.94449104,1925.5,1925.0,0.4]
[1617251694920,15.94449104,1925.5,1925.1,0.81358467]
[1617251695122,7.79405,1925.3,1925.1,0.76358467]
[1617251696523,7.74105,1925.3,1925.1,0.13658467]
[1617251697169,5.01,1925.2,1925.1,0.13658467]
[1617251697369,5.5522312,1925.3,1925.1,0.13658467]
[1617251697968,13.3469312,1925.3,1925.1,0.13658467]
[1617251698170,8.3369312,1925.3,1925.1,0.13658467]
[1617251698968,5.01,1925.2,1925.1,0.13658467]
[1617251699167,15.40324,1925.2,1925.1,0.13658467]
[1617251700570,16.48778536,1925.2,1925.1,0.13658467]
[1617251702802,6.09454536,1925.2,1925.1,0.52658467]
[1617251703002,1.08454536,1925.2,1925.1,0.52658467]
[1617251703603,0.56654536,1925.2,1925.1,0.52658467]
[1617251703803,0.5422312,1925.3,1925.1,0.13658467]
[1617251704004,1.08437087,1925.7,1925.1,0.13658467]
[1617251704206,2.30879169,1925.7,1925.1,0.13658467]
[1617251704606,5.01,1925.6,1925.1,0.13658467]
[1617251704804,7.7941,1925.3,1925.1,0.13658467]
[1617251705247,5.01,1925.2,1925.1,0.13658467]
[1617251705648,15.40308,1925.4,1925.1,0.13658467]
[1617251706050,7.79532,1925.2,1925.1,0.13658467]
[1617251706650,6.79532,1925.2,1925.1,0.13658467]
[1617251708451,11.80532,1925.2,1925.1,0.13658467]
[1617251709251,6.79532,1925.2,1925.1,0.51658467]
[1617251709451,0.27109054,1925.6,1925.1,2.62319567]
[1617251709651,0.35546141,1925.7,1925.5,0.39]
[1617251709852,13.3522743,1925.9,1925.5,9.4939]
[1617251710535,7.79241,1925.7,1925.5,9.4939]
[1617251710937,7.79241,1925.7,1925.5,9.1039]
[1617251711537,4.01,1925.6,1925.5,9.1039]
[1617251711737,3.89675,1925.8,1925.5,9.1039]
[1617251712137,7.79362,1925.8,1925.5,9.1039]
[1617251712337,13.36434668,1925.9,1925.5,9.1039]
[1617251712540,7.79303,1925.6,1925.5,9.1039]
[1617251713337,7.79303,1925.6,1925.5,9.4839]
[1617251714540,6.79303,1925.6,1925.5,9.60786676]
[1617251714941,0.3596743,1925.9,1925.5,9.60786676]
[1617251715341,0.3596743,1925.9,1925.6,0.4]
[1617251715545,0.3596743,1925.9,1925.8,0.39]
[1617251716342,0.3596743,1925.9,1925.7,0.8209]
[1617251716542,9.7484843,1926.0,1925.7,0.8209]
[1617251716745,9.7484843,1926.0,1925.7,1.2309]
[1617251717144,7.79161,1925.9,1925.7,1.2309]
[1617251717545,7.79161,1925.9,1925.7,1.220525]
[1617251717746,7.79161,1925.9,1925.7,0.810525]
[1617251717945,7.79161,1925.9,1925.5,11.02386676]
[1617251718150,12.80161,1925.9,1925.5,11.02386676]
[1617251718754,7.79161,1925.9,1925.6,2.08145326]
[1617251718951,7.79161,1925.9,1925.6,2.49145326]
[1617251719551,13.53208409,1926.2,1925.6,2.49145326]
[1617251719752,13.53208409,1926.2,1925.8,0.39]
[1617251720151,13.53208409,1926.2,1925.7,0.8216]
[1617251720152,2.0777815,1926.1,1925.7,0.8216]
[1617251720776,7.79077,1926.0,1925.7,0.8216]
[1617251721573,6.79077,1926.0,1925.7,0.4]
[1617251721773,0.71141125,1925.9,1925.7,0.4]
[1617251721973,7.79228,1925.8,1925.7,0.4]
[1617251722574,7.79228,1925.8,1925.0,7.71384695]
[1617251722775,7.79228,1925.8,1925.5,0.4]
[1617251722776,14.8803613,1925.8,1925.5,0.4]
[1617251722975,7.79252,1925.7,1925.5,0.4]
[1617251724598,6.79252,1925.7,1925.6,0.20616214]
[1617251726619,6.12552,1925.7,1925.6,0.20616214]
[1617251727221,6.83649367,1925.7,1925.6,0.20616214]
[1617251729049,0.71097367,1925.7,1925.6,0.20616214]
[1617251729651,5.58803483,1926.0,1925.6,0.58616214]
[1617251729849,5.01,1925.8,1925.6,0.58616214]
[1617251730049,9.8702869,1925.8,1925.6,0.20616214]
[1617251730247,15.39956,1925.9,1925.6,0.20616214]